[Event "27th CRO-chT Women 2018"]
[Site "Biograd"]
[Date "2018.09.14"]
[Round "8.4"]
[White "Smetisko, Marija"]
[Black "Dejanovic, Tereza"]
[Result "1/2-1/2"]
[ECO "B85"]
[WhiteElo "1900"]
[BlackElo "1815"]
[Annotator "NA"]
[PlyCount "57"]
[EventDate "2018.09.08"]
[EventType "team-tourn"]
[EventCountry "CRO"]
[SourceTitle "playchess.com"]
[Source "ChessBase"]
[SourceQuality "1"]
[TimeControl "40/5400+30:1800+30"]

1. e4 {[%emt 0:00:30]} c5 {[%emt 0:00:30]} 2. Nf3 {[%emt 0:00:00]} d6 {[%emt 0:00:00]} 3. d4 {[%emt 0:00:00]} cxd4 {[%emt 0:00:00]} 4. Nxd4 {[%emt 0:00:00]} Nf6 {[%emt 0:00:00]} 5. Nc3 {[%emt 0:00:00]} a6 {[%emt 0:00:00]} 6. Be2 {[%emt 0:00:30]} e6 {[%emt 0:00:00]} 7. Be3 {[%emt 0:01:30]} Be7 {[%emt 0:00:00]} 8. O-O {[%emt 0:00:30]} O-O {[%emt 0:00:30]} 9. a4 {[%emt 0:00:30]} Nc6 {[%emt 0:01:30]} 10. Nb3 {[%emt 0:02:30]} b6 {[%emt 0:01:30]} 11. f4 {[%emt 0:04:30]} Bb7 {[%emt 0:00:30]} 12. Bf3 {[%emt 0:06:30]} Qc7 {[%emt 0:00:30]} 13. Qd2 {[%emt 0:00:30]} Nd7 {[%emt 0:05:30]} 14. Rad1 {[%emt 0:09:30]} Rfd8 {[%emt 0:04:30]} 15. Qf2 $11 {[%emt 0:05:30] LiveBook: 5 Games} Bf6 {[%emt 0:04:30]} 16. Qd2 {[%emt 0:11:30]} Nc5 {[%emt 0:04:30]} 17. Nd4 {[%emt 0:04:30]} Rac8 {[%emt 0:09:30]} 18. Bg4 {[%emt 0:12:30]} Qe7 {[%emt 0:11:30]} 19. Bf3 {[%emt 0:06:30]} Nxd4 {[%emt 0:04:30]} 20. Bxd4 {[%emt 0:00:00]} Bxd4+ {[%emt 0:00:30]} 21. Qxd4 {[%emt 0:00:00]} Bc6 {[%emt 0:04:30]} 22. Rfe1 {[%emt 0:07:30]} Qb7 {[%emt 0:06:30]} 23. Re2 {[%emt 0:06:43]} Qd7 {[%emt 0:06:30]} 24. b3 {[%emt 0:04:51]} Qc7 {[%emt 0:01:30]} 25. Red2 {[%emt 0:01:00]} a5 {[%emt 0:04:30]} 26. Be2 {[%emt 0:04:00]} Qb7 {[%emt 0:02:30]} 27. Bf3 {[%emt 0:00:48]} Qc7 {[%emt 0:01:30]} 28. Be2 {[%emt 0:00:10]} Qb7 {[%emt 0:00:00]} 29. Bf3 {[%emt 0:00:08]} 1/2-1/2

[Event "27th CRO-chT Women 2018"]
[Site "Biograd"]
[Date "2018.09.14"]
[Round "8.5"]
[White "Videkovic, Marina"]
[Black "Rozman, Monika"]
[Result "0-1"]
[ECO "A11"]
[WhiteElo "1833"]
[BlackElo "2037"]
[Annotator "NA"]
[PlyCount "92"]
[EventDate "2018.09.08"]
[EventType "team-tourn"]
[EventCountry "CRO"]
[SourceTitle "playchess.com"]
[Source "ChessBase"]
[SourceQuality "1"]
[TimeControl "40/5400+30:1800+30"]

1. Nf3 {[%emt 0:00:30]} Nf6 {[%emt 0:00:30]} 2. g3 {[%emt 0:00:00]} g6 {[%emt 0:01:30]} 3. b3 {[%emt 0:00:00]} Bg7 {[%emt 0:01:30]} 4. Bb2 {[%emt 0:00:30]} O-O {[%emt 0:01:30]} 5. Bg2 {[%emt 0:00:00]} c6 {[%emt 0:00:30]} 6. c4 {[%emt 0:02:00]} d5 {[%emt 0:01:30]} 7. Na3 {[%emt 0:08:30]} Re8 {[%emt 0:09:30]} 8. O-O {[%emt 0:00:30]} Bf5 {[%emt 0:02:30]} 9. d3 {[%emt 0:03:30]} Nbd7 {[%emt 0:01:30]} 10. Nh4 {[%emt 0:03:30]} e5 {[%emt 0:03:30]} 11. Nxf5 {[%emt 0:10:30]} gxf5 {[%emt 0:00:30]} 12. e3 {[%emt 0:00:30]} Nf8 {[%emt 0:09:30]} 13. Bh3 {[%emt 0:05:30]} f4 {[%emt 0:00:30]} 14. exf4 {[%emt 0:06:30]} exf4 {[%emt 0:00:30]} 15. Qf3 {[%emt 0:02:30]} Ng6 {[%emt 0:08:30]} 16. Rad1 {[%emt 0:15:30]} Ne4 {[%emt 0:12:30]} 17. dxe4 {[%emt 0:09:30]} Bxb2 {[%emt 0:00:30]} 18. exd5 {[%emt 0:00:30]} Bxa3 {[%emt 0:01:30]} 19. dxc6 {[%emt 0:00:30]} Qb6 {[%emt 0:04:30]} 20. cxb7 {[%emt 0:03:30]} Rad8 {[%emt 0:01:30]} 21. Rxd8 {[%emt 0:12:18]} Rxd8 {[%emt 0:00:30]} 22. Bc8 {[%emt 0:00:30]} Bd6 {[%emt 0:06:30]} 23. Rd1 {[%emt 0:02:36]} Bb8 {[%emt 0:01:30]} 24. Rxd8+ {[%emt 0:00:49]} Qxd8 {[%emt 0:00:00]} 25. c5 {[%emt 0:03:35]} Qf6 {[%emt 0:02:00]} 26. Qd1 {[%emt 0:01:20]} Ne5 {[%emt 0:02:30]} 27. Qh5 {[%emt 0:02:56]} h6 {[%emt 0:13:49]} 28. a3 {[%emt 0:01:44]} Nd3 {[%emt 0:00:46]} 29. Qg4+ {[%emt 0:01:03]} Kh8 {[%emt 0:00:38]} 30. Qe2 {[%emt 0:01:43]} Nxc5 {[%emt 0:04:26]} 31. Qe8+ {[%emt 0:00:43]} Kg7 {[%emt 0:00:02]} 32. Bh3 {[%emt 0:01:10]} Qe5 {[%emt 0:00:30]} 33. Qb5 {[%emt 0:01:06]} Qe1+ {[%emt 0:02:23]} 34. Bf1 {[%emt 0:00:15]} Ne4 {[%emt 0:00:41]} 35. Qe2 {[%emt 0:00:19]} Qxe2 {[%emt 0:00:13]} 36. Bxe2 {[%emt 0:00:04]} Nc5 {[%emt 0:00:05]} 37. Bf3 {[%emt 0:00:11]} Nxb3 {[%emt 0:00:08]} 38. a4 {[%emt 0:00:19]} Kf6 {[%emt 0:00:17]} 39. h4 {[%emt 0:01:05]} fxg3 {[%emt 0:00:15]} 40. fxg3 {[%emt 0:00:00]} Bxg3 {[%emt 0:00:00]} 41. h5 {[%emt 0:00:44]} Bb8 {[%emt 0:01:17]} 42. Kf2 {[%emt 0:00:30]} Ke5 {[%emt 0:00:30]} 43. Ke3 {[%emt 0:00:00]} f5 {[%emt 0:00:30]} 44. Bc6 {[%emt 0:01:00]} Kd6 {[%emt 0:01:30]} 45. Bf3 {[%emt 0:00:30]} Kc5 {[%emt 0:00:00]} 46. Bd1 {[%emt 0:00:30]} Kb4 {[%emt 0:08:00]} 0-1

[Event "27th CRO-chT Women 2018"]
[Site "Biograd"]
[Date "2018.09.14"]
[Round "8.6"]
[White "Blazeka, Mihaela"]
[Black "Grgic, Neomi"]
[Result "0-1"]
[ECO "C96"]
[WhiteElo "2048"]
[BlackElo "1851"]
[Annotator "NA"]
[PlyCount "66"]
[EventDate "2018.09.08"]
[EventType "team-tourn"]
[EventCountry "CRO"]
[SourceTitle "playchess.com"]
[Source "ChessBase"]
[SourceQuality "1"]
[TimeControl "40/5400+30:1800+30"]

1. e4 {[%emt 0:00:30]} e5 {[%emt 0:00:30]} 2. Nf3 {[%emt 0:00:00]} Nc6 {[%emt 0:00:00]} 3. Bb5 {[%emt 0:00:00]} a6 {[%emt 0:00:00]} 4. Ba4 {[%emt 0:00:00]} Nf6 {[%emt 0:00:00]} 5. O-O {[%emt 0:00:00]} Be7 {[%emt 0:00:00]} 6. d3 {[%emt 0:00:30]} b5 {[%emt 0:00:00]} 7. Bb3 {[%emt 0:00:00]} d6 {[%emt 0:01:00]} 8. c3 {[%emt 0:00:00]} O-O {[%emt 0:00:30]} 9. h3 {[%emt 0:01:30]} Na5 {[%emt 0:00:30]} 10. Bc2 {[%emt 0:00:30]} c5 {[%emt 0:01:30]} 11. Nbd2 {[%emt 0:00:00]} Qc7 {[%emt 0:01:30]} 12. Re1 {[%emt 0:00:00]} Nc6 {[%emt 0:03:30]} 13. Nf1 {[%emt 0:05:30]} Ne8 {[%emt 0:01:30]} 14. Ne3 {[%emt 0:06:30]} Be6 {[%emt 0:06:30]} 15. Qe2 {[%emt 0:00:30]} Bf6 {[%emt 0:06:30]} 16. Nh2 {[%emt 0:14:30]} g6 {[%emt 0:09:30]} 17. g4 {[%emt 0:22:30]} Ne7 {[%emt 0:17:30]} 18. Ng2 {[%emt 0:07:30]} d5 {[%emt 0:08:30]} 19. Bh6 {[%emt 0:01:30]} Bg7 {[%emt 0:11:30]} 20. Bxg7 {[%emt 0:00:30]} Nxg7 {[%emt 0:00:30]} 21. exd5 {[%emt 0:00:30]} Bxd5 {[%emt 0:06:30]} 22. Qxe5 {[%emt 0:00:30]} Qc6 {[%emt 0:02:30]} 23. Nf4 {[%emt 0:00:30]} Rae8 {[%emt 0:01:30]} 24. Nxd5 {[%emt 0:00:30]} Nxd5 {[%emt 0:00:00]} 25. Qg3 {[%emt 0:00:30]} Ne6 {[%emt 0:00:00]} 26. Nf3 {[%emt 0:02:30]} Nef4 {[%emt 0:05:46]} 27. Ne5 {[%emt 0:03:30]} Qc7 {[%emt 0:01:37]} 28. c4 {[%emt 0:08:30]} Nb4 {[%emt 0:03:53]} 29. Re4 {[%emt 0:03:30]} g5 {[%emt 0:03:28]} 30. h4 {[%emt 0:10:52]} Rxe5 {[%emt 0:00:24]} 31. Rae1 {[%emt 0:01:52]} Rxe4 {[%emt 0:00:56]} 32. Rxe4 {[%emt 0:00:09]} Nxc2 {[%emt 0:00:09]} 33. hxg5 {[%emt 0:00:09]} Nd4 {[%emt 0:01:00]} 0-1

[Event "27th CRO-chT Women 2018"]
[Site "Biograd"]
[Date "2018.09.14"]
[Round "8.7"]
[White "Raguz, Ivanka"]
[Black "Ljikar, Tamara"]
[Result "0-1"]
[ECO "B47"]
[WhiteElo "1706"]
[BlackElo "1920"]
[Annotator "NA"]
[PlyCount "62"]
[EventDate "2018.09.08"]
[EventType "team-tourn"]
[EventCountry "CRO"]
[SourceTitle "playchess.com"]
[Source "ChessBase"]
[SourceQuality "1"]
[TimeControl "40/5400+30:1800+30"]

1. e4 {[%emt 0:00:30]} c5 {[%emt 0:00:30]} 2. Nf3 {[%emt 0:00:00]} e6 {[%emt 0:00:00]} 3. d4 {[%emt 0:00:00]} cxd4 {[%emt 0:00:00]} 4. Nxd4 {[%emt 0:00:30]} Nc6 {[%emt 0:00:30]} 5. g3 {[%emt 0:00:00]} Nf6 {[%emt 0:00:30]} 6. Bg2 {[%emt 0:00:00]} Qc7 {[%emt 0:01:30]} 7. O-O {[%emt 0:00:30]} Be7 {[%emt 0:02:30]} 8. Nc3 {[%emt 0:02:30]} a6 {[%emt 0:03:30]} 9. Nde2 {[%emt 0:00:30]} Rb8 {[%emt 0:03:30]} 10. f4 {[%emt 0:02:30]} d6 {[%emt 0:01:30]} 11. Kh1 {[%emt 0:01:30]} O-O {[%emt 0:00:30]} 12. Be3 {[%emt 0:01:30]} b5 {[%emt 0:04:30]} 13. a3 {[%emt 0:01:30]} Bb7 {[%emt 0:09:30]} 14. Bf3 {[%emt 0:04:30]} Na5 {[%emt 0:08:30]} 15. g4 {[%emt 0:02:30]} Nc4 {[%emt 0:00:30]} 16. Qc1 {[%emt 0:01:30]} Nxe3 {[%emt 0:06:30]} 17. Qxe3 {[%emt 0:00:00]} Rfd8 {[%emt 0:02:30]} 18. g5 {[%emt 0:03:00]} Nd7 {[%emt 0:05:30]} 19. Ng3 {[%emt 0:12:30]} Nb6 {[%emt 0:02:30]} 20. b3 {[%emt 0:06:30]} d5 {[%emt 0:00:30]} 21. exd5 {[%emt 0:00:30]} Nxd5 {[%emt 0:00:30]} 22. Nxd5 {[%emt 0:00:30]} Bxd5 {[%emt 0:00:30]} 23. Bxd5 {[%emt 0:00:30]} Rxd5 {[%emt 0:00:00]} 24. Qe2 {[%emt 0:06:30]} Rbd8 {[%emt 0:03:00]} 25. Ne4 {[%emt 0:00:30]} Qc6 {[%emt 0:01:30]} 26. Qg2 {[%emt 0:03:30]} Kh8 {[%emt 0:03:30]} 27. c3 {[%emt 0:08:30]} Rd3 {[%emt 0:04:30]} 28. f5 {[%emt 0:06:30]} exf5 {[%emt 0:03:30]} 29. Rxf5 {[%emt 0:00:30]} Qe6 {[%emt 0:00:30]} 30. Raf1 {[%emt 0:03:30]} Rd1 {[%emt 0:01:30]} 31. b4 {[%emt 0:01:30]} Qxf5 {[%emt 0:00:00]} 0-1

[Event "27th CRO-chT Women 2018"]
[Site "Biograd"]
[Date "2018.09.14"]
[Round "8.8"]
[White "Blazeka, Ivana"]
[Black "Ivekovic, Zvjezdana"]
[Result "0-1"]
[ECO "B13"]
[WhiteElo "1610"]
[BlackElo "1703"]
[Annotator "NA"]
[PlyCount "88"]
[EventDate "2018.09.08"]
[EventType "team-tourn"]
[EventCountry "CRO"]
[SourceTitle "playchess.com"]
[Source "ChessBase"]
[SourceQuality "1"]
[TimeControl "40/5400+30:1800+30"]

1. e4 {[%emt 0:00:30]} c6 {[%emt 0:00:30]} 2. d4 {[%emt 0:00:00]} d5 {[%emt 0:00:00]} 3. exd5 {[%emt 0:01:00]} cxd5 {[%emt 0:00:00]} 4. Bd3 {[%emt 0:01:30]} Nc6 {[%emt 0:01:30]} 5. c3 {[%emt 0:01:30]} Nf6 {[%emt 0:00:30]} 6. Bf4 {[%emt 0:02:30]} e6 {[%emt 0:06:30]} 7. Nd2 {[%emt 0:00:30]} Bd6 {[%emt 0:00:30]} 8. Bxd6 {[%emt 0:01:30]} Qxd6 {[%emt 0:00:30]} 9. Ngf3 {[%emt 0:02:30]} O-O {[%emt 0:00:30]} 10. Qe2 {[%emt 0:02:30]} Re8 {[%emt 0:00:30]} 11. Ne5 {[%emt 0:07:30]} Ne7 {[%emt 0:05:30]} 12. O-O {[%emt 0:01:30]} Ng6 {[%emt 0:01:30]} 13. Nxg6 {[%emt 0:03:30]} hxg6 {[%emt 0:00:30]} 14. Nf3 {[%emt 0:01:30]} b6 {[%emt 0:04:30]} 15. Rfe1 {[%emt 0:05:30]} Nh5 {[%emt 0:01:30]} 16. Qe5 {[%emt 0:08:30]} Qxe5 {[%emt 0:02:30]} 17. Nxe5 {[%emt 0:00:30]} a5 {[%emt 0:01:30]} 18. Re3 {[%emt 0:12:30]} Ba6 {[%emt 0:04:30]} 19. Bxa6 {[%emt 0:02:30]} Rxa6 {[%emt 0:00:30]} 20. Rc1 {[%emt 0:03:30]} b5 {[%emt 0:02:30]} 21. Nd7 {[%emt 0:04:30]} Nf6 {[%emt 0:01:30]} 22. Nxf6+ {[%emt 0:05:30]} gxf6 {[%emt 0:00:30]} 23. f4 {[%emt 0:11:13]} Rb6 {[%emt 0:08:30]} 24. h3 {[%emt 0:01:23]} Rc8 {[%emt 0:01:30]} 25. Rd1 {[%emt 0:09:43]} Rc4 {[%emt 0:04:30]} 26. b3 {[%emt 0:00:28]} Rc7 {[%emt 0:00:30]} 27. Rdd3 {[%emt 0:01:57]} Rbc6 {[%emt 0:01:30]} 28. Kf2 {[%emt 0:00:02]} Kh7 {[%emt 0:12:30]} 29. b4 {[%emt 0:03:22]} axb4 {[%emt 0:10:30]} 30. cxb4 {[%emt 0:00:09]} Rc2+ {[%emt 0:00:00]} 31. Re2 {[%emt 0:00:05]} Rc1 {[%emt 0:00:00]} 32. a3 {[%emt 0:01:17]} g5 {[%emt 0:04:30]} 33. g3 {[%emt 0:01:14]} gxf4 {[%emt 0:00:30]} 34. gxf4 {[%emt 0:00:05]} Kg6 {[%emt 0:00:30]} 35. Kg3 {[%emt 0:02:55]} Kf5 {[%emt 0:01:30]} 36. Rf2 {[%emt 0:01:36]} Ke4 {[%emt 0:01:30]} 37. Rff3 {[%emt 0:00:29]} Rc8 {[%emt 0:00:30]} 38. Rfe3+ {[%emt 0:00:24]} Kf5 {[%emt 0:00:30]} 39. Rf3 {[%emt 0:00:38]} Rg8+ {[%emt 0:01:30]} 40. Kf2 {[%emt 0:00:00]} Rc2+ {[%emt 0:00:00]} 41. Kf1 {[%emt 0:02:30]} Rc1+ {[%emt 0:01:00]} 42. Kf2 {[%emt 0:00:30]} Rgg1 {[%emt 0:01:30]} 43. Ke2 {[%emt 0:02:30]} Rg2+ {[%emt 0:00:30]} 44. Rf2 {[%emt 0:01:30]} Rc2+ {[%emt 0:00:00]} 0-1

[Event "27th CRO-chT Women 2018"]
[Site "Biograd"]
[Date "2018.09.14"]
[Round "8.9"]
[White "Kejzar, Petra"]
[Black "Krivec, Jana"]
[Result "1-0"]
[ECO "A21"]
[WhiteElo "2067"]
[BlackElo "2185"]
[Annotator "NA"]
[PlyCount "99"]
[EventDate "2018.09.08"]
[EventType "team-tourn"]
[EventCountry "CRO"]
[SourceTitle "playchess.com"]
[Source "ChessBase"]
[SourceQuality "1"]
[TimeControl "40/5400+30:1800+30"]

1. c4 {[%emt 0:00:30]} e5 {[%emt 0:00:30]} 2. Nc3 {[%emt 0:00:00]} d6 {[%emt 0:01:30]} 3. g3 {[%emt 0:00:00]} g6 {[%emt 0:01:30]} 4. Bg2 {[%emt 0:00:30]} Bg7 {[%emt 0:00:30]} 5. d3 {[%emt 0:02:30]} f5 {[%emt 0:06:30]} 6. e4 {[%emt 0:04:30]} Ne7 {[%emt 0:03:30]} 7. Nge2 {[%emt 0:03:30]} O-O {[%emt 0:03:30]} 8. Bg5 {[%emt 0:10:30]} h6 {[%emt 0:02:30]} 9. Bd2 {[%emt 0:01:30]} Nbc6 $11 {[%emt 0:04:30]} 10. Qb3 {[%emt 0:06:30]} fxe4 {[%emt 0:08:30]} 11. dxe4 {[%emt 0:03:30]} Bg4 {[%emt 0:05:30]} 12. O-O {[%emt 0:04:30]} Bf3 {[%emt 0:11:30]} 13. Bxf3 {[%emt 0:05:30]} Rxf3 {[%emt 0:00:30]} 14. Kg2 {[%emt 0:00:30]} Qf8 {[%emt 0:04:30]} 15. c5+ {[%emt 0:04:30]} Kh7 {[%emt 0:00:30]} 16. cxd6 {[%emt 0:00:30]} cxd6 {[%emt 0:00:30]} 17. Qe6 {[%emt 0:00:30]} Rd8 {[%emt 0:26:35]} 18. Rad1 {[%emt 0:10:30]} d5 {[%emt 0:11:11]} 19. exd5 {[%emt 0:00:30]} Nd4 {[%emt 0:00:18]} 20. Nxd4 {[%emt 0:03:30]} exd4 {[%emt 0:00:04]} 21. d6 {[%emt 0:02:30]} Nc8 {[%emt 0:02:37]} 22. Ne4 {[%emt 0:00:30]} Nxd6 {[%emt 0:00:26]} 23. Bb4 {[%emt 0:03:30]} Rf6 {[%emt 0:03:14]} 24. Nxf6+ {[%emt 0:01:30]} Qxf6 {[%emt 0:00:02]} 25. Qxf6 {[%emt 0:00:30]} Bxf6 {[%emt 0:00:03]} 26. Bxd6 {[%emt 0:00:30]} Rxd6 {[%emt 0:00:04]} 27. Rc1 {[%emt 0:00:30]} Rd7 {[%emt 0:00:22]} 28. Rfd1 {[%emt 0:00:30]} g5 {[%emt 0:01:32]} 29. g4 {[%emt 0:00:30]} Be5 {[%emt 0:00:33]} 30. Rd3 {[%emt 0:00:30]} Kg6 {[%emt 0:00:29]} 31. Rc5 {[%emt 0:02:30]} Bf6 {[%emt 0:00:34]} 32. Kf3 {[%emt 0:00:30]} Rf7 {[%emt 0:01:19]} 33. Rf5 {[%emt 0:00:30]} h5 {[%emt 0:00:21]} 34. h3 {[%emt 0:00:30]} h4 {[%emt 0:00:43]} 35. Ke4 {[%emt 0:01:30]} Re7+ {[%emt 0:00:07]} 36. Kd5 {[%emt 0:00:00]} Re2 {[%emt 0:00:38]} 37. Rb3 {[%emt 0:01:00]} b6 {[%emt 0:00:24]} 38. Kc4 {[%emt 0:03:30]} Rc2+ {[%emt 0:00:33]} 39. Kd3 {[%emt 0:00:30]} Rc1 {[%emt 0:00:08]} 40. Kd2 {[%emt 0:00:00]} Rc6 {[%emt 0:00:00]} 41. Rd5 {[%emt 0:02:00]} Rc7 {[%emt 0:07:13]} 42. Rbb5 {[%emt 0:00:30]} Rf7 {[%emt 0:00:30]} 43. Rd6 {[%emt 0:00:30]} Kg7 {[%emt 0:01:30]} 44. Rf5 {[%emt 0:00:30]} Kg6 {[%emt 0:00:30]} 45. Kd3 {[%emt 0:00:30]} Kg7 {[%emt 0:00:30]} 46. Rdxf6 {[%emt 0:02:30]} Rxf6 {[%emt 0:00:00]} 47. Rxf6 {[%emt 0:00:00]} Kxf6 {[%emt 0:00:00]} 48. Kxd4 {[%emt 0:00:00]} a5 {[%emt 0:00:30]} 49. Ke4 {[%emt 0:00:30]} b5 {[%emt 0:00:30]} 50. f4 {[%emt 0:00:30]} 1-0

[Event "27th CRO-chT Women 2018"]
[Site "Biograd"]
[Date "2018.09.14"]
[Round "8.11"]
[White "Mican, Karmela"]
[Black "Starcevic, Andrea"]
[Result "1/2-1/2"]
[ECO "B48"]
[WhiteElo "1890"]
[BlackElo "1893"]
[Annotator "NA"]
[PlyCount "83"]
[EventDate "2018.09.08"]
[EventType "team-tourn"]
[EventCountry "CRO"]
[SourceTitle "playchess.com"]
[Source "ChessBase"]
[SourceQuality "1"]
[TimeControl "40/5400+30:1800+30"]

1. e4 {[%emt 0:00:30]} c5 {[%emt 0:01:30]} 2. Nf3 {[%emt 0:00:00]} e6 {[%emt 0:00:00]} 3. d4 {[%emt 0:00:00]} cxd4 {[%emt 0:00:00]} 4. Nxd4 {[%emt 0:00:00]} a6 {[%emt 0:00:30]} 5. Be3 {[%emt 0:01:00]} Qc7 {[%emt 0:00:30]} 6. Nc3 {[%emt 0:01:30]} Nc6 {[%emt 0:01:30]} 7. a3 {[%emt 0:01:30]} Nf6 {[%emt 0:03:30]} 8. Be2 {[%emt 0:00:30]} Be7 {[%emt 0:00:30]} 9. O-O {[%emt 0:00:30]} O-O {[%emt 0:00:30]} 10. f4 {[%emt 0:06:30]} d6 {[%emt 0:02:30]} 11. Kh1 {[%emt 0:02:30]} Bd7 {[%emt 0:03:30]} 12. Qe1 {[%emt 0:02:30]} Na5 {[%emt 0:12:30]} 13. Rd1 $14 {[%emt 0:04:30]} Rac8 {[%emt 0:03:30]} 14. Qg3 {[%emt 0:06:30]} Nc4 {[%emt 0:08:30]} 15. Bc1 {[%emt 0:01:30]} b5 {[%emt 0:19:30]} 16. f5 {[%emt 0:09:30]} Ne5 {[%emt 0:05:30]} 17. Bh6 {[%emt 0:01:30]} g6 {[%emt 0:03:30]} 18. Bxf8 {[%emt 0:02:30]} Rxf8 {[%emt 0:00:30]} 19. Qh3 {[%emt 0:03:30]} Nc4 {[%emt 0:05:30]} 20. Bxc4 {[%emt 0:04:30]} Qxc4 {[%emt 0:00:30]} 21. Qd3 {[%emt 0:03:30]} Rc8 {[%emt 0:04:30]} 22. Rf3 {[%emt 0:02:30]} Qxd3 {[%emt 0:03:32]} 23. Rfxd3 {[%emt 0:00:30]} Ng4 {[%emt 0:00:12]} 24. R3d2 {[%emt 0:09:30]} Ne3 {[%emt 0:01:57]} 25. Rb1 {[%emt 0:00:30]} Nc4 {[%emt 0:00:25]} 26. Rd3 {[%emt 0:00:30]} Ne5 {[%emt 0:00:49]} 27. Rh3 {[%emt 0:01:30]} Nc4 {[%emt 0:02:09]} 28. Kg1 {[%emt 0:06:30]} Bf6 {[%emt 0:00:26]} 29. Nde2 {[%emt 0:02:30]} exf5 {[%emt 0:00:56]} 30. Nd5 {[%emt 0:01:30]} Bd8 {[%emt 0:01:51]} 31. exf5 {[%emt 0:02:30]} Bxf5 {[%emt 0:00:19]} 32. Rc3 {[%emt 0:00:30]} Kg7 {[%emt 0:01:01]} 33. b4 {[%emt 0:03:40]} Bg5 {[%emt 0:02:42]} 34. Nef4 {[%emt 0:00:54]} Re8 {[%emt 0:01:30]} 35. g3 {[%emt 0:03:19]} Bd8 {[%emt 0:02:35]} 36. h4 {[%emt 0:05:43]} h6 {[%emt 0:01:11]} 37. Ng2 {[%emt 0:03:55]} Re5 {[%emt 0:02:29]} 38. Nge3 {[%emt 0:05:33]} Nxe3 {[%emt 0:01:31]} 39. Nxe3 {[%emt 0:00:09]} Bb6 {[%emt 0:00:22]} 40. Re1 {[%emt 0:00:00]} Bd4 {[%emt 0:00:00]} 41. Rc6 {[%emt 0:08:17]} Bxe3+ {[%emt 0:09:03]} 42. Kh2 {[%emt 0:00:30]} 1/2-1/2

[Event "27th CRO-chT Women 2018"]
[Site "Biograd"]
[Date "2018.09.14"]
[Round "8.12"]
[White "Tomulic, Vesna"]
[Black "Lijic, Kristina"]
[Result "1/2-1/2"]
[ECO "B57"]
[WhiteElo "1837"]
[BlackElo "1715"]
[Annotator "NA"]
[PlyCount "93"]
[EventDate "2018.09.08"]
[EventType "team-tourn"]
[EventCountry "CRO"]
[SourceTitle "playchess.com"]
[Source "ChessBase"]
[SourceQuality "1"]
[TimeControl "40/5400+30:1800+30"]

1. e4 {[%emt 0:02:30]} c5 {[%emt 0:00:30]} 2. Nf3 {[%emt 0:00:00]} d6 {[%emt 0:00:00]} 3. Bc4 {[%emt 0:00:00]} Nc6 {[%emt 0:03:00]} 4. d4 {[%emt 0:01:30]} cxd4 {[%emt 0:00:30]} 5. Nxd4 {[%emt 0:00:00]} Nf6 {[%emt 0:00:30]} 6. Nc3 {[%emt 0:00:00]} g6 {[%emt 0:00:30]} 7. Nxc6 {[%emt 0:01:30]} bxc6 {[%emt 0:00:30]} 8. e5 {[%emt 0:00:30]} Ng8 {[%emt 0:05:30]} 9. Qf3 {[%emt 0:06:30]} e6 {[%emt 0:06:30]} 10. Qxc6+ {[%emt 0:00:30]} Bd7 {[%emt 0:00:00]} 11. Qf3 {[%emt 0:15:30]} dxe5 $18 {[%emt 0:03:00]} (11... Rb8 $16) 12. O-O {[%emt 0:00:30]} Rb8 {[%emt 0:02:30]} 13. Ne4 {[%emt 0:00:30]} Qc7 {[%emt 0:08:30]} 14. Bb3 {[%emt 0:05:30]} Be7 {[%emt 0:01:30]} 15. Ng5 {[%emt 0:06:30]} Nf6 {[%emt 0:02:30]} 16. Re1 {[%emt 0:02:30]} Qa5 {[%emt 0:13:30]} (16... O-O $11) 17. Be3 {[%emt 0:05:30]} O-O {[%emt 0:00:30]} 18. Rad1 {[%emt 0:00:30]} Rfc8 {[%emt 0:01:30]} 19. Bd2 {[%emt 0:03:30]} Qc7 {[%emt 0:04:30]} 20. Bc3 {[%emt 0:01:30]} Rb5 {[%emt 0:08:30]} 21. a4 {[%emt 0:04:30]} Bc6 {[%emt 0:09:30]} 22. Qh3 {[%emt 0:03:30]} Rxb3 {[%emt 0:07:30]} 23. cxb3 {[%emt 0:00:30]} h5 {[%emt 0:00:30]} 24. Bxe5 {[%emt 0:01:30]} Qb7 {[%emt 0:00:30]} 25. Nxf7 {[%emt 0:10:30]} Kxf7 {[%emt 0:01:24]} 26. Bxf6 {[%emt 0:01:30]} Bxf6 {[%emt 0:01:36]} 27. Qxe6+ {[%emt 0:00:30]} Kg7 {[%emt 0:00:27]} 28. Rd6 {[%emt 0:00:30]} Bxb2 {[%emt 0:01:32]} 29. Qxg6+ {[%emt 0:00:30]} Kf8 {[%emt 0:00:23]} 30. Qf5+ {[%emt 0:06:34]} Kg8 {[%emt 0:01:17]} 31. Rg6+ {[%emt 0:00:58]} Bg7 {[%emt 0:00:29]} 32. Qg5 {[%emt 0:04:37]} Qd7 {[%emt 0:01:52]} 33. h3 {[%emt 0:02:36]} Rc7 {[%emt 0:00:48]} 34. Rge6 {[%emt 0:01:39]} Qd4 {[%emt 0:01:46]} 35. Rc1 {[%emt 0:04:09]} Qd7 {[%emt 0:00:53]} 36. Qf5 {[%emt 0:02:01]} Rc8 {[%emt 0:01:14]} 37. Rce1 {[%emt 0:00:49]} Rf8 {[%emt 0:02:18]} 38. Qxh5 {[%emt 0:00:49]} Qd2 {[%emt 0:00:54]} 39. Qe2 {[%emt 0:03:11]} Qd5 {[%emt 0:00:26]} 40. Rg6 {[%emt 0:00:00]} Rf6 {[%emt 0:00:00]} 41. Qg4 {[%emt 0:05:37]} Rxg6 {[%emt 0:04:11]} 42. Qxg6 {[%emt 0:00:00]} Qd2 {[%emt 0:00:30]} 43. Qe6+ {[%emt 0:02:00]} Kh8 {[%emt 0:00:30]} 44. Qc8+ {[%emt 0:04:30]} Kh7 {[%emt 0:00:30]} 45. Qf5+ {[%emt 0:00:30]} Kg8 {[%emt 0:01:30]} 46. Qc8+ {[%emt 0:02:30]} Kh7 {[%emt 0:00:30]} 47. Qf5+ {[%emt 0:00:30]} 1/2-1/2